fUSD/lending_fUSD_20250222
["ID","MTS","AMOUNT","RATE_DAILY","PERIOD"]
[354125057,1740263441024,-491.36,0.00018851,2]
[354125060,1740263441034,-221.0,0.00018863,2]
[354125062,1740263441043,-1000.0,0.00018878,2]
[354125064,1740263441052,-497.61,0.0001889,2]
[354125066,1740263441061,-5000.0,0.000189,2]
[354125068,1740263441070,-488.11504028,0.000189,2]
[354125070,1740263441080,-495.47,0.00018915,2]
[354125072,1740263441089,-507.76,0.00018927,2]
[354125074,1740263441098,-509.55,0.00018949,2]
[354125075,1740263441107,-238.46,0.00018977,2]
[354125077,1740263441116,-700.0,0.00018987,7]
[354125079,1740263441128,-497.91,0.00018988,2]
[354125081,1740263441138,-151.0,0.0001899,2]
[354125083,1740263441147,-151.0,0.0001899,2]
[354125085,1740263441156,-151.0,0.0001899,2]
[354125087,1740263441165,-151.0,0.0001899,2]
[354125089,1740263441174,-151.0,0.0001899,2]
[354125091,1740263441183,-151.0,0.0001899,2]
[354125093,1740263441192,-685.471149,0.0001899,2]
[354125095,1740263441203,-151.0,0.0001899,2]
[354125097,1740263441211,-213.763328,0.0001899,2]
[354125099,1740263441220,-151.0,0.0001899,2]
[354125101,1740263441230,-151.0,0.0001899,2]
[354125103,1740263441239,-151.0,0.0001899,2]
[354125105,1740263441247,-151.0,0.0001899,2]
[354125107,1740263441256,-151.0,0.0001899,2]
[354125109,1740263441265,-281.46731697,0.0001899,2]
[354125111,1740263441274,-510.5774537,0.00018994,2]
[354125113,1740263441284,-12475.95253929,0.00018999,2]
[354125115,1740263441293,-2636.01727734,0.00019,10]
[354125117,1740263441303,-2876.16365871,0.00019,2]
[354125119,1740263441312,-7601.42679162,0.00019,2]
[354125121,1740263441321,-3715.23233308,0.00019,2]
[354125123,1740263441329,-10345.16268864,0.00019,2]
[354125125,1740263441338,-400.5785641,0.00019,10]
[354125127,1740263441347,-5000.0,0.00019,7]
[354125129,1740263441357,-53629.94064957,0.00019,2]
[354125131,1740263441366,-77255.33686362,0.00019,2]
[354125133,1740263441375,-961.61,0.00019,2]
[354125135,1740263441385,-17578.62859465,0.00019,3]
[354125137,1740263441394,-900.0,0.00019,20]
[354125139,1740263441403,-15223.993275,0.00019,5]
[354125141,1740263441413,-152.0,0.00019,2]
[354125143,1740263441422,-2734559.92453647,0.00019,2]
[354125145,1740263441431,-151.0,0.00019,2]
[354125147,1740263441440,-151.0,0.00019,2]
[354125149,1740263441449,-151.0,0.00019,2]
[354125151,1740263441458,-151.0,0.00019,2]
[354125153,1740263441468,-151.0,0.00019,2]
[354125155,1740263441477,-151.0,0.00019,2]
[354125157,1740263441486,-151.0,0.00019,2]
[354125159,1740263441494,-151.0,0.00019,2]
[354125161,1740263441503,-151.0,0.00019,2]
[354125163,1740263441512,-151.0,0.00019,2]
[354125165,1740263441521,-685.471149,0.00019,2]
[354125167,1740263441530,-151.0,0.00019,2]
[354125169,1740263441539,-151.0,0.00019,2]
[354125171,1740263441548,-151.0,0.00019,2]
[354125173,1740263441557,-151.0,0.00019,2]
[354125175,1740263441566,-151.0,0.00019,2]
[354125177,1740263441577,-151.0,0.00019,2]
[354125179,1740263441586,-151.0,0.00019,2]
[354125181,1740263441595,-154.030744,0.00019,2]
[354125183,1740263441604,-151.664242,0.00019,2]
[354125185,1740263441613,-488.62398,0.00019,2]
[354125187,1740263441622,-1672.6517929,0.00019007,2]
[354125189,1740263441631,-1000.0,0.0001902,2]
[354125191,1740263441640,-465.28,0.00019051,2]
[354125193,1740263441649,-1683.64,0.00019066,2]
[354125195,1740263441658,-1065.0,0.00019067,2]
[354125197,1740263441667,-540.2880317,0.00019077,2]
[354125199,1740263441676,-569.9986098,0.00019077,2]
[354125201,1740263441685,-217.97092,0.0001908,2]
[354125203,1740263441695,-2000.0,0.00019083,2]
[354125205,1740263441704,-500.0,0.00019083,2]
[354125207,1740263441713,-5000.0,0.00019086,2]
[354125209,1740263441722,-341.14363,0.00019088,7]
[354125211,1740263441731,-25000.0,0.0001909,2]
[354125213,1740263441740,-5000.0,0.00019094,2]
[354125215,1740263441749,-599.7091879,0.00019097,2]
[354125217,1740263441758,-5000.0,0.00019103,2]
[354125218,1740263441767,-5078.59221069,0.0001911,2]
[354125220,1740263441777,-5000.0,0.00019112,2]
[354125222,1740263441786,-629.4197659,0.00019138,2]
[354125224,1740263441796,-11918.31,0.00019151,2]
[354125226,1740263441805,-857.498568,0.00019152,2]
[354125228,1740263441814,-150.0,0.00019152,2]
[354125230,1740263441823,-1002.0,0.00019152,2]
[354125232,1740263441832,-150.0,0.00019152,2]
[354125234,1740263441841,-659.130344,0.00019165,2]
[354125236,1740263441850,-151.0,0.00019173,2]
[354125238,1740263441860,-151.0,0.00019173,2]
[354125241,1740263441869,-151.0,0.00019173,2]
[354125243,1740263441879,-5000.0,0.00019175,2]
[354125244,1740263441888,-500.0,0.00019178,2]
[354125246,1740263441897,-500.0,0.00019178,2]
[354125248,1740263441906,-500.0,0.00019178,2]
[354125250,1740263441915,-458.64026967,0.00019178,2]
[354125252,1740263441924,-500.0,0.00019178,2]
[354125254,1740263441933,-500.0,0.00019178,2]
[354125256,1740263441943,-500.0,0.00019178,2]
[354125258,1740263441952,-500.0,0.00019178,2]
[354125260,1740263441961,-500.0,0.00019178,2]
[354125262,1740263441971,-500.0,0.00019178,2]
[354125264,1740263441980,-500.0,0.00019178,2]
[354125266,1740263441990,-371.37608318,0.00019178,2]
[354125268,1740263441999,-458.22580118,0.00019178,2]
[354125270,1740263442009,-606.87,0.00019178,2]
[354125272,1740263442018,-825.91,0.00019178,2]
[354125274,1740263442027,-490.0,0.00019178,2]
[354125276,1740263442036,-457.78363912,0.00019178,2]
[354125278,1740263442045,-1329.98,0.00019178,2]
[354125280,1740263442055,-1329.98,0.00019178,2]
[354125281,1740263442064,-151.0,0.00019178,2]
[354125282,1740263442072,-500.0,0.00019178,30]
[354125283,1740263442081,-500.0,0.00019178,30]
[354125284,1740263442090,-500.0,0.00019178,30]
[354125285,1740263442099,-500.0,0.00019178,30]
[354125286,1740263442109,-500.0,0.00019178,30]
[354125287,1740263442118,-500.0,0.00019178,30]
[354125288,1740263442131,-500.0,0.00019178,30]
[354125290,1740263442140,-313.26264276,0.00019178,30]
[354125292,1740263442149,-3235.17,0.00019178,2]
[354125294,1740263442159,-163.35954575,0.00019178,2]
[354125296,1740263442169,-150.0,0.00019178,2]
[354125298,1740263442178,-1002.0,0.00019179,2]
[354125300,1740263442188,-150.0,0.00019179,2]
[354125302,1740263442200,-4671.22194571,0.00019183,2]
[354125304,1740263442209,-500.0,0.00019183,2]
[354125306,1740263442218,-200.0,0.000192,2]
[354125308,1740263442228,-1002.0,0.00019207,2]
[354125310,1740263442236,-150.0,0.00019207,2]
[354125312,1740263442246,-239.52,0.00019207,2]
[354125314,1740263442255,-1125.58034881,0.0001922,5]
[354125316,1740263442264,-300.0,0.00019228,2]
[354125318,1740263442273,-703.08,0.00019228,2]
[354125320,1740263442282,-1002.0,0.00019234,2]
[354125321,1740263442291,-150.0,0.00019234,2]
[354125323,1740263442300,-690595.99882758,0.00019241,2]
[354125325,1740263442310,-159.3,0.00019248,2]
[354125327,1740263442318,-1329.98,0.00019253,3]
[354125329,1740263442328,-1002.0,0.00019262,2]
[354125331,1740263442338,-249.91622724,0.00019262,2]
[354125333,1740263442347,-500.0,0.00019283,2]
[354125335,1740263442357,-102801.65,0.00019287,30]
[354125337,1740263442366,-341.14363,0.00019288,7]
[354125339,1740263442375,-1002.0,0.00019289,2]
[354125341,1740263442384,-154.61,0.0001929,2]
[354125343,1740263442394,-2604.14,0.00019294,2]
[354125345,1740263442403,-218626.07906136,0.000193,2]
[354125358,1740263442510,-288.07999384,0.000193,2]
[354125360,1740263442522,-2143.3600349,0.000193,2]
[354125362,1740263442533,-2046.15283687,0.000193,2]
[354125364,1740263442542,-280.287154,0.000193,2]
[354125366,1740263442552,-194.580656,0.000193,2]
[354125368,1740263442561,-151.0,0.000193,2]
[354125370,1740263442571,-242.442579,0.000193,2]
[354125372,1740263442580,-151.0,0.000193,2]
[354125374,1740263442589,-151.0,0.000193,2]
[354125376,1740263442599,-151.0,0.000193,2]
[354125378,1740263442608,-685.471149,0.000193,2]
[354125380,1740263442617,-151.0,0.000193,2]
[354125382,1740263442626,-151.0,0.000193,2]
[354125384,1740263442636,-151.0,0.000193,2]
[354125386,1740263442645,-151.0,0.000193,2]
[354125388,1740263442654,-174.96562513,0.00019316,2]
[354125391,1740263442666,-827.03437487,0.00019316,2]
[354125394,1740263442674,-1573.44037672,0.00019327,2]
[354125396,1740263442687,-573.21934277,0.00019327,2]
[354125399,1740263442698,-2853.34028051,0.00019327,2]
[354125401,1740263442708,-1329.98,0.00019335,3]
[354125404,1740263442718,-1824.67,0.00019339,2]
[354125406,1740263442727,-183.27111393,0.00019341,2]
[354125409,1740263442737,-865.21619926,0.00019341,2]
[354125412,1740263442746,-865.21619926,0.00019341,2]
[354125415,1740263442756,-865.21619926,0.00019341,2]
[354125417,1740263442765,-865.21619926,0.00019341,2]
[354125420,1740263442775,-865.21619926,0.00019341,2]
[354125422,1740263442784,-865.21619926,0.00019341,2]
[354125424,1740263442794,-865.21619926,0.00019341,2]
[354125426,1740263442803,-865.21619926,0.00019341,2]
[354125428,1740263442812,-865.21619926,0.00019341,2]
[354125430,1740263442822,-865.21619926,0.00019341,2]
[354125432,1740263442831,-865.21619926,0.00019341,2]
[354125434,1740263442840,-865.21619926,0.00019341,2]
[354125436,1740263442850,-865.21619926,0.00019341,2]
[354125438,1740263442860,-865.21619926,0.00019341,2]
[354125440,1740263442869,-865.21619926,0.00019341,2]
[354125442,1740263442879,-865.21619926,0.00019341,2]
[354125444,1740263442888,-669.28239806,0.00019341,2]
[354125446,1740263442900,-195.9338012,0.00019341,2]
[354125448,1740263442910,-865.21619926,0.00019341,2]
[354125450,1740263442919,-292.67159954,0.00019341,2]
[354125452,1740263442931,-572.54459972,0.00019341,2]
[354125454,1740263442940,-337.20908789,0.00019341,2]
[354125456,1740263442952,-404.0,0.00019341,2]
[354125459,1740263442964,-124.00091211,0.00019341,2]
[354125461,1740263442974,-898.43539682,0.00019341,2]
[354125463,1740263442985,-898.43539682,0.00019341,2]
[354125465,1740263442995,-898.43539682,0.00019341,2]
[354125467,1740263443004,-775.56006646,0.00019341,2]
[354125469,1740263443016,-122.87533036,0.00019341,2]
[354125471,1740263443026,-192.41366964,0.00019341,2]
[354125473,1740263443038,-370.292,0.00019341,2]
[354125475,1740263443050,-335.72972718,0.00019341,2]
[354125477,1740263443059,-898.43539682,0.00019341,2]
[354125479,1740263443068,-898.43539682,0.00019341,2]
[354125481,1740263443077,-898.43539682,0.00019341,2]
[354125483,1740263443086,-898.43539682,0.00019341,2]
[354125485,1740263443095,-898.43539682,0.00019341,2]
[354125487,1740263443105,-898.43539682,0.00019341,2]
[354125489,1740263443116,-898.43539682,0.00019341,2]
[354125491,1740263443128,-898.43539682,0.00019341,2]
[354125493,1740263443137,-898.43539682,0.00019341,2]
[354125495,1740263443147,-898.43539682,0.00019341,2]
[354125497,1740263443157,-898.43539682,0.00019341,2]
[354125499,1740263443168,-898.43539682,0.00019341,2]
[354125501,1740263443178,-898.43539682,0.00019341,2]
[354125503,1740263443188,-898.43539682,0.00019341,2]
[354125505,1740263443198,-898.43,0.00019341,2]
[354125507,1740263443207,-1138.56362799,0.00019341,2]
[354125509,1740263443217,-1138.56362799,0.00019341,2]
[354125511,1740263443227,-1138.56362799,0.00019341,2]
[354125513,1740263443237,-1138.56362799,0.00019341,2]
[354125515,1740263443246,-1138.56362799,0.00019341,2]
[354125517,1740263443256,-1138.56362799,0.00019341,2]
[354125519,1740263443266,-1138.56362799,0.00019341,2]
[354125521,1740263443275,-1138.56362799,0.00019341,2]
[354125523,1740263443285,-1138.56362799,0.00019341,2]
[354125525,1740263443295,-1138.56362799,0.00019341,2]
[354125528,1740263443305,-1138.56362799,0.00019341,2]
[354125529,1740263443315,-1138.56362799,0.00019341,2]
[354125531,1740263443324,-1138.56362799,0.00019341,2]
[354125533,1740263443334,-1138.56362799,0.00019341,2]
[354125536,1740263443343,-1138.56362799,0.00019341,2]
[354125538,1740263443353,-1138.56362799,0.00019341,2]
[354125539,1740263443362,-1138.56362799,0.00019341,2]
[354125542,1740263443372,-1138.56362799,0.00019341,2]
[354125543,1740263443381,-1138.56362799,0.00019341,2]
[354125545,1740263443391,-1138.56,0.00019341,2]
[354125548,1740263443401,-1002.0,0.00019344,2]
[354125550,1740263443410,-5051.8598891,0.00019351,2]
[354125552,1740263443421,-16551.42595686,0.00019351,2]
[354125554,1740263443433,-3396.71415404,0.00019351,2]
[354125556,1740263443443,-1125.58034881,0.00019354,5]
[354125558,1740263443452,-5000.0,0.00019355,2]
[354125560,1740263443462,-951.91,0.00019362,2]
[354125562,1740263443471,-1002.0,0.00019371,2]
[354125564,1740263443480,-500.0,0.00019383,2]
[354125566,1740263443489,-12368.03660048,0.0001939,10]
[354125568,1740263443501,-555.89672797,0.0001939,10]
[354125571,1740263443512,-572.91188503,0.0001939,10]
[354125573,1740263443523,-10813.44397206,0.0001939,10]
[354125575,1740263443534,-258.59,0.0001939,10]
[354125577,1740263443546,-522.03396463,0.0001939,10]
[354125579,1740263443558,-16592.59189608,0.0001939,10]
[354125581,1740263443567,-1944.91,0.00019396,2]
[354125583,1740263443576,-447.19,0.00019397,30]
[354125585,1740263443586,-1002.0,0.00019399,2]
[354125587,1740263443596,-26665.4152175,0.00019401,2]
[354125589,1740263443605,-1329.98,0.00019418,3]
[354125592,1740263443616,-1002.0,0.00019426,2]
[354125608,1740263443757,-1776.0001235,0.00019428,2]
[354125610,1740263443767,-1879.3484541,0.00019428,2]
[354125612,1740263443776,-1982.6967846,0.00019428,2]
[354125614,1740263443785,-2086.0451152,0.00019428,2]
[354125615,1740263443794,-2189.3934458,0.00019428,2]
[354125616,1740263443803,-5532.52825949,0.00019441,2]
[354125617,1740263443811,-4606.06579948,0.00019441,2]
[354125618,1740263443821,-12712.27219229,0.00019441,2]
[354125619,1740263443832,-7681.66200823,0.00019441,2]
[354125620,1740263443841,-1731.542337,0.00019441,4]
[354125621,1740263443852,-26661.6629939,0.00019441,4]
[354125623,1740263443863,-3150.11392817,0.00019441,4]
[354125625,1740263443874,-3365.45796823,0.00019441,4]
[354125627,1740263443885,-9690.55073557,0.00019441,4]
[354125629,1740263443896,-4014.5,0.00019441,4]
[354125631,1740263443907,-1025.06710056,0.00019441,4]
[354125634,1740263443918,-2466.38505697,0.00019441,4]
[354125639,1740263443962,-151.0,0.00019,2]
[354125641,1740263443971,-151.0,0.00019,2]
[354125643,1740263443980,-151.0,0.00019241,2]
[354125645,1740263443991,-1458.39227438,0.00019441,4]
[354125648,1740263444003,-4850.0,0.00019441,4]
[354125650,1740263444014,-1213.92185901,0.00019441,4]
[354125653,1740263444030,-255.564357,0.000193,2]
[354125655,1740263444039,-45002.17326213,0.00019441,4]
[354125657,1740263444050,-519.90796093,0.00019441,4]
[354125659,1740263444061,-2958.5052,0.00019441,4]
[354125661,1740263444074,-292.35005528,0.00019441,4]
[354125663,1740263444085,-993.65312793,0.00019441,4]
[354125666,1740263444096,-371.45349006,0.00019441,4]
[354125668,1740263444107,-5503.12715141,0.00019441,4]
[354125670,1740263444118,-869.30755836,0.00019441,4]
[354125672,1740263444133,-1759.35999998,0.00019441,4]
[354125675,1740263444144,-2124.4700145,0.00019441,4]
[354125677,1740263444155,-2429.625,0.00019441,4]
[354125679,1740263444167,-2422.0,0.00019441,4]
[354125681,1740263444179,-1983.6409057,0.00019441,4]
[354125683,1740263444192,-686.0995385,0.00019441,4]
[354125685,1740263444204,-505.89,0.00019441,4]
[354125687,1740263444216,-9810.49999999,0.00019441,4]
[354125690,1740263444227,-4540.0,0.00019441,4]
[354125692,1740263444238,-682.1928,0.00019441,4]
[354125694,1740263444248,-15154.19434664,0.00019441,4]
[354125857,1740263445751,-500.0,0.00019,2]
[354125859,1740263445761,-4671.22194568,0.00019183,2]
[354125861,1740263445771,-952.0,0.00019441,2]
[354125863,1740263445780,-4739.37844701,0.00019441,4]
[354125865,1740263445789,-21468.94220011,0.00019441,4]
[354125867,1740263445801,-288.49261135,0.00019441,4]
[354125869,1740263445812,-373.78320873,0.00019441,4]
[354125872,1740263445823,-557.6099985,0.00019441,4]
[354125874,1740263445834,-43639.3800226,0.00019441,4]
[354125880,1740263445879,-3636.8359471,0.00019441,4]
[354125882,1740263445890,-485.69143973,0.00019441,4]
[354125884,1740263445901,-11239.1716,0.00019441,4]
[354125886,1740263445912,-74202.77520524,0.00019441,4]
[354125894,1740263445977,-269.24704914,0.00019441,4]
[354125896,1740263445993,-421.5799658,0.00019441,4]
[354125898,1740263446004,-8309.03551398,0.00019441,4]
[354125908,1740263446088,-9380.2687362,0.00019441,4]
[354126922,1740264228096,151.47,8.767e-05,2]
[354126972,1740264632792,2678.59490407,0.0002019,120]
[354127770,1740264640503,-150.0,0.00010932,2]
[354127772,1740264640513,-260.05499999,0.00010958,2]
[354128019,1740264642999,-239.94500001,0.00010958,2]
[354128021,1740264643009,-566.24,0.00010958,2]
[354128023,1740264643019,-500.0,0.00010958,2]
[354128026,1740264643029,-500.0,0.00010958,2]
[354128027,1740264643038,-500.0,0.00010958,2]
[354128029,1740264643048,-500.0,0.00010958,2]
[354128030,1740264643057,-500.0,0.00010958,2]
[354128032,1740264643067,-500.0,0.00010958,2]
[354128034,1740264643076,-500.0,0.00010958,2]
[354128036,1740264643085,-500.0,0.00010958,2]
[354128038,1740264643094,-500.0,0.00010958,2]
[354128040,1740264643103,-22.52164684,0.00010958,2]
[354128042,1740264643114,-477.47835316,0.00010958,2]
[354128044,1740264643123,-500.0,0.00010958,2]
[354128046,1740264643132,-419.70090577,0.00010958,2]
[354128048,1740264643143,-80.29909423,0.00010958,2]
[354128050,1740264643152,-500.0,0.00010958,2]
[354128052,1740264643162,-500.0,0.00010958,2]
[354128054,1740264643172,-504.85563022,0.00010958,2]
[354128056,1740264643181,-500.0,0.00010958,2]
[354128057,1740264643190,-500.0,0.00010958,2]
[354128059,1740264643199,-228.50847314,0.00010958,2]
[354128061,1740264643208,-500.0,0.00010999,2]
[354128063,1740264643217,-205.7,0.00011041,2]
[354128065,1740264643226,-445.05269033,0.00011041,2]
[354128067,1740264643235,-244.15,0.00011041,2]
[354128069,1740264643244,-500.0,0.00011041,2]
[354128071,1740264643254,-500.0,0.00011123,2]
[354128073,1740264643263,-500.0,0.00011205,2]
[354128075,1740264643272,-500.0,0.00011287,2]
[354128077,1740264643281,-500.0,0.00011369,2]
[354128078,1740264643290,-500.0,0.00011452,2]
[354128080,1740264643299,-500.0,0.00011534,2]
[354128082,1740264643308,-500.0,0.00011616,2]
[354128084,1740264643317,-500.0,0.00011698,2]
[354128086,1740264643326,-500.0,0.0001178,2]
[354128088,1740264643335,-500.0,0.00011863,2]
[354128090,1740264643344,-500.0,0.00011945,2]
[354128092,1740264643354,-629.55067548,0.00012027,2]
[354128094,1740264643363,-500.0,0.00012054,2]
[354128096,1740264643372,-500.0,0.00012054,2]
[354128098,1740264643382,-38.28341968,0.00012328,2]
[354128100,1740264643394,-961.71658032,0.00012328,2]
[354128102,1740264643404,-376.34147404,0.00012354,2]
[354128104,1740264643416,-1000.0,0.00012602,2]
[354128106,1740264643426,-500.0,0.00012633,2]
[354128108,1740264643435,-15407.25,0.00012893,2]
[354128110,1740264643445,-150.99,0.00012893,2]
[354128112,1740264643454,-150.99,0.00012893,2]
[354128114,1740264643463,-1116.71,0.00012893,2]
[354128116,1740264643472,-1068.22391286,0.00013181,2]
[354128118,1740264643482,-1060.0,0.00013765,2]
[354128119,1740264643491,-335.55,0.0001389,2]
[354128121,1740264643501,-1060.0,0.0001449,2]
[354128123,1740264643513,-1000.0,0.00014845,2]
[354128125,1740264643522,-1000.0,0.00015208,2]
[354128127,1740264643531,-1060.0,0.00015215,2]
[354128129,1740264643540,-500.0,0.00015605,2]
[354128131,1740264643551,-500.0,0.00015605,2]
[354128133,1740264643560,-500.0,0.00015605,2]
[354128135,1740264643569,-2024.0,0.00015851,2]
[354128137,1740264643580,-1272.0,0.00015851,2]
[354128139,1740264643589,-1787.0,0.00015851,2]
[354128141,1740264643599,-1266.0,0.00015851,2]
[354128143,1740264643609,-908.0,0.00015851,2]
[354128145,1740264643622,-782.0,0.00015851,2]
[354128147,1740264643631,-4024.0,0.00015851,2]
[354128149,1740264643642,-539.0,0.00015851,2]
[354128151,1740264643651,-150.0,0.00015851,2]
[354128153,1740264643661,-150.188,0.00015851,2]
[354128155,1740264643671,-3917.0,0.00015851,2]
[354128157,1740264643680,-493.15,0.00015854,2]
[354128159,1740264643690,-2000.0,0.000159,2]
[354128161,1740264643699,-335.55,0.00016154,2]
[354128163,1740264643708,-151.47,0.00016309,2]
[354128165,1740264643717,-200.0,0.00016414,2]
[354128167,1740264643727,-662.0,0.00016536,2]
[354128169,1740264643736,-662.0,0.00016706,2]
[354128171,1740264643746,-662.0,0.00016877,2]
[354128173,1740264643756,-210.37150602,0.000169,2]
[354128174,1740264643765,-2615.929,0.00017047,2]
[354128177,1740264643774,-168.776,0.00017047,2]
[354128178,1740264643784,-662.0,0.00017047,2]
[354128180,1740264643794,-370.88521581,0.00017047,2]
[354128182,1740264643803,-1000.0,0.00017097,2]
[354128184,1740264643812,-662.0,0.00017217,2]
[354128186,1740264643821,-1970.92,0.00017285,2]
[354128188,1740264643830,-200.0,0.00017302,2]
[354128190,1740264643840,-662.0,0.00017388,2]
[354128192,1740264643849,-7095.92,0.00017444,2]
[354128194,1740264643859,-150.0,0.00017482,2]
[354128196,1740264643868,-150.0,0.00017482,2]
[354128198,1740264643877,-150.0,0.00017482,2]
[354128200,1740264643886,-150.0,0.00017482,2]
[354128202,1740264643895,-150.0,0.00017482,2]
[354128204,1740264643905,-662.0,0.00017558,2]
[354128206,1740264643915,-210.37150597,0.00017567,2]
[354128208,1740264643924,-704.82,0.00017582,2]
[354128210,1740264643933,-166.88,0.00017588,2]
[354128212,1740264643942,-704.82,0.00017638,2]
[354128214,1740264643952,-150.0,0.00017659,2]
[354128216,1740264643961,-704.82,0.00017693,2]
[354128218,1740264643971,-704.82,0.00017749,2]
[354128220,1740264643980,-704.82,0.00017804,2]
[354128222,1740264643990,-150.0,0.00017835,2]
[354128224,1740264643999,-493.15,0.00017835,2]
[354128226,1740264644008,-704.82,0.0001786,2]
[354128228,1740264644017,-704.82,0.00017915,2]
[354128230,1740264644026,-704.82,0.00017971,2]
[354128232,1740264644035,-150.0,0.00018012,2]
[354128234,1740264644045,-704.82,0.00018026,2]
[354128236,1740264644054,-733.39,0.0001805,2]
[354128238,1740264644063,-704.82,0.00018082,2]
[354128240,1740264644073,-200.0,0.00018082,2]
[354128242,1740264644082,-203.94675135,0.00018138,2]
[354128244,1740264644091,-704.82,0.00018138,2]
[354128246,1740264644100,-150.0,0.00018189,2]
[354128248,1740264644109,-704.82,0.00018193,2]
[354128249,1740264644118,-210.37150597,0.00018233,2]
[354128251,1740264644127,-704.82,0.00018249,2]
[354128253,1740264644137,-704.82,0.00018304,2]
[354128255,1740264644146,-704.82,0.0001836,2]
[354128257,1740264644155,-150.0,0.00018365,2]
[354128259,1740264644165,-159.3,0.00018412,2]
[354128261,1740264644174,-704.82,0.00018415,2]
[354128264,1740264644184,-335.55,0.00018418,2]
[354128266,1740264644194,-155.22427168,0.00018442,2]
[354128267,1740264644203,-150.0,0.00018453,2]
[354128269,1740264644213,-704.82,0.00018471,2]
[354128271,1740264644222,-167.02,0.00018487,2]
[354128273,1740264644231,-152.46,0.000185,31]
[354128275,1740264644241,-152.46,0.000185,31]
[354128278,1740264644251,-152.46,0.000185,31]
[354128279,1740264644260,-152.46,0.000185,31]
[354128282,1740264644269,-152.46,0.000185,31]
[354128284,1740264644279,-152.46,0.000185,31]
[354128285,1740264644288,-152.46,0.000185,31]
[354128288,1740264644297,-704.82,0.00018526,2]
[354128289,1740264644306,-14693.56,0.00018533,2]
[354128292,1740264644316,-28459.88,0.00018533,2]
[354128293,1740264644327,-150.0,0.00018542,2]
[354128295,1740264644336,-1244.29274572,0.00018561,30]
[354128297,1740264644345,-1244.29274572,0.00018566,30]
[354128299,1740264644354,-704.82,0.00018582,2]
[354128301,1740264644363,-704.82,0.00018637,2]
[354128303,1740264644373,-1244.29274572,0.00018679,30]
[354128305,1740264644382,-1244.29274572,0.00018699,30]
[354128307,1740264644392,-150.0,0.00018718,2]
[354128309,1740264644401,-500.0,0.0001882,2]
[354128311,1740264644411,-150.0,0.00018895,2]
[354128313,1740264644421,-210.37150597,0.000189,2]
[354128315,1740264644430,-500.0,0.0001892,2]
[354128317,1740264644440,-500.0,0.0001902,2]
[354128319,1740264644449,-774.1712066,0.00019052,2]
[354128321,1740264644458,-150.0,0.00019071,2]
[354128323,1740264644468,-2500.0,0.00019103,2]
[354128325,1740264644478,-500.0,0.0001912,2]
[354128327,1740264644487,-150.0,0.00019166,2]
[354128329,1740264644497,-150.0,0.00019189,2]
[354128332,1740264644512,-150.0,0.00019198,2]
[354128333,1740264644520,-150.0,0.00019202,2]
[354128334,1740264644529,-150.0,0.00019203,2]
[354128335,1740264644538,-500.0,0.0001922,2]
[354128336,1740264644548,-1000.0,0.00019234,2]
[354128337,1740264644557,-150.0,0.00019238,2]
[354128338,1740264644566,-150.0,0.00019241,2]
[354128339,1740264644575,-2500.0,0.00019241,2]
[354128340,1740264644586,-150.0,0.00019248,4]
[354128341,1740264644595,-150.0,0.00019252,2]
[354128342,1740264644604,-159.3,0.00019261,2]
[354128344,1740264644613,-150.0,0.0001927,2]
[354128346,1740264644622,-500.0,0.0001932,2]
[354128348,1740264644632,-150.0,0.00019323,2]
[354128350,1740264644641,-167.00804497,0.00019325,2]